bitfinex/quotes_ETHUSD_20240618
["timestamp","ask_amount","ask_price","bid_price","bid_amount"]
[1718673822337,0.3036015,3440.1,3439.1,0.00574846]
[1718673822541,5.12,3439.8,3439.1,0.00574846]
[1718673822827,0.75,3439.7,3438.2,7.59688079]
[1718673823137,2.9,3439.1,3438.2,7.59688079]
[1718673823281,4.44398311,3439.0,3438.2,7.40518079]
[1718673823488,5.19398311,3439.0,3438.2,7.40518079]
[1718673823722,5.16802628,3439.0,3438.2,7.40518079]
[1718673824028,5.16802628,3439.0,3438.0,0.00146]
[1718673824029,0.75,3438.1,3438.0,0.00146]
[1718673824235,1.44398311,3438.1,3438.0,0.00146]
[1718673824585,4.44398311,3438.1,3438.0,0.00146]
[1718673824792,2.19398311,3438.1,3438.0,0.00146]
[1718673825037,2.19398311,3438.1,3436.6,7.95509482]
[1718673825038,1.44398311,3438.1,3436.6,7.95509482]
[1718673825238,0.75,3437.9,3436.6,7.95509482]
[1718673825398,3.0,3437.3,3436.6,7.90509482]
[1718673825597,5.12,3437.1,3436.6,7.90509482]
[1718673825802,5.87,3437.1,3436.6,7.90509482]
[1718673826037,4.196,3436.7,3436.6,0.74049122]
[1718673826241,5.19398311,3436.7,3435.5,0.13569748]
[1718673826391,8.63998311,3436.7,3435.5,0.13569748]
[1718673826591,0.75,3435.8,3435.5,0.13569748]
[1718673826792,3.0,3436.6,3435.5,0.13569748]
[1718673827035,3.043,3437.1,3435.5,0.13569748]
[1718673827312,3.043,3436.9,3435.5,0.13569748]
[1718673827520,1.45570319,3440.9,3435.9,2.91036]
[1718673827822,0.75,3441.0,3437.2,3.446]
[1718673827823,3.0,3438.4,3437.2,3.446]
[1718673828013,0.75,3439.4,3437.7,3.446]
[1718673828340,4.343,3442.9,3437.8,2.2758]
[1718673828341,2.98,3439.7,3437.8,2.2758]
[1718673828647,2.9,3440.0,3438.8,2.90793]
[1718673828789,2.9,3440.0,3438.9,0.55]
[1718673829102,2.9,3440.0,3438.3,0.75]
[1718673829103,3.0,3439.1,3438.3,2.90839]
[1718673829308,3.0,3439.1,3437.6,3.446]
[1718673829503,3.0,3439.1,3438.3,2.90838]
[1718673829703,3.0,3439.5,3439.1,2.90771]
[1718673829917,3.0,3440.1,3439.0,2.90782]
[1718673830102,3.0,3440.1,3439.3,5.5217]
[1718673830308,0.75,3441.4,3439.3,5.5217]
[1718673830510,1.735,3441.5,3439.4,0.87151576]
[1718673830728,3.0,3441.3,3440.8,2.9063]
[1718673830907,3.0,3441.3,3440.8,2.90628]
[1718673831236,3.0,3441.3,3441.2,10.92712]
[1718673831461,3.0,3442.2,3441.2,5.1152]
[1718673831730,3.0,3442.8,3441.2,5.14378276]
[1718673831934,3.75,3444.7,3441.6,2.90559]
[1718673832089,5.0801,3444.8,3442.1,2.90513]
[1718673832090,3.0,3443.2,3442.1,2.90513]
[1718673832290,3.0,3443.2,3441.3,0.55]
[1718673832291,3.0,3443.2,3442.6,2.90477]
[1718673832490,3.0,3443.2,3442.3,0.75]
[1718673832720,3.0,3442.6,3442.3,0.75]
[1718673832905,3.0,3442.6,3442.4,0.57858276]
[1718673833119,3.0,3442.6,3440.9,0.75]
[1718673833303,3.0,3442.1,3441.1,2.90603]
[1718673833504,3.0,3442.1,3441.2,0.55]
[1718673833711,3.0,3442.1,3441.3,2.90586]
[1718673833938,3.0,3442.1,3440.8,2.90622]
[1718673834105,2.90538,3441.9,3440.5,2.90653]
[1718673834310,5.90483,3442.6,3440.5,1.927121]
[1718673834516,1.747,3442.5,3440.7,3.654]
[1718673834693,3.0,3442.6,3440.7,4.404]
[1718673834910,3.0,3442.6,3440.5,1.177121]
[1718673834911,3.0,3443.2,3442.2,2.90506]
[1718673835372,3.0,3444.7,3443.1,2.90435]
[1718673835660,3.45493513,3444.7,3443.4,5.0896]
[1718673835863,15.0,3445.0,3443.5,2.90397]
[1718673836012,18.0,3445.0,3443.9,3.654]
[1718673836210,15.0,3445.0,3444.9,5.0896]
[1718673836411,6.73656793,3445.0,3444.9,11.64644]
[1718673836656,3.0,3446.4,3445.1,0.75]
[1718673836839,3.0,3446.4,3444.9,13.651379]
[1718673836840,3.0,3446.8,3445.8,3.654]
[1718673837023,0.03448226,3447.9,3445.8,3.654]
[1718673837223,3.0,3447.4,3447.0,2.90101]
[1718673837422,3.0,3447.4,3446.7,2.90125]
[1718673837756,3.0,3447.4,3445.4,2.90234]
[1718673837937,5.87,3446.6,3444.7,2.90299]
[1718673838143,3.0,3446.4,3444.3,2.90328]
[1718673838451,3.0,3445.5,3444.6,2.90302]
[1718673838654,3.0,3445.5,3443.4,0.75]
[1718673838870,3.0,3445.5,3443.8,2.90375]
[1718673838871,3.0,3445.1,3443.8,2.90375]
[1718673839014,3.0,3444.7,3443.6,2.90391]
[1718673839214,3.0,3444.7,3443.8,2.90369]
[1718673839532,3.0,3445.5,3444.0,2.90353]
[1718673839853,0.75,3446.9,3443.0,0.75]
[1718673839854,4.747,3445.1,3443.0,0.75]
[1718673840064,4.747,3445.1,3441.9,3.654]
[1718673840065,1.747,3443.9,3442.4,2.90494]
[1718673840270,3.0,3443.6,3442.7,2.90461]
[1718673840423,3.0,3445.0,3442.2,2.9051]
[1718673840424,3.0,3443.2,3442.2,2.9051]
[1718673840631,3.0,3443.2,3441.8,2.90539]
[1718673840862,3.0,3443.2,3441.9,2.90535]
[1718673841035,3.0,3443.2,3440.5,6.353521]
[1718673841036,4.747,3442.7,3440.8,0.75]
[1718673841238,3.0,3443.5,3440.8,0.75]
[1718673841239,4.747,3442.3,3441.1,2.90604]
[1718673841471,4.747,3442.3,3440.9,2.90617]
[1718673841472,3.0,3441.7,3440.9,2.90617]
[1718673841767,3.0,3441.7,3439.8,2.90712]
[1718673841768,3.0,3441.3,3439.8,2.90712]
[1718673841964,1.747,3441.7,3441.2,0.75]
[1718673841965,3.0,3441.7,3441.2,0.75]
[1718673842167,2.5692,3451.9,3441.9,2.90534]
[1718673842168,3.0,3442.6,3441.9,2.90534]
[1718673842340,3.0,3442.6,3441.3,5.357]
[1718673842341,3.0,3443.2,3443.1,2.90435]
[1718673842559,3.0,3443.2,3442.1,2.90516]
[1718673842560,5.1274,3445.3,3442.8,0.75]
[1718673842761,3.0,3443.7,3442.5,0.75]
[1718673842962,6.57138311,3445.3,3442.3,0.75]
[1718673842963,3.066,3445.1,3442.3,0.75]
[1718673843298,3.0,3442.7,3442.0,2.90527]
[1718673843447,3.0,3444.0,3442.6,0.75]
[1718673843765,1.44398311,3445.0,3442.2,2.90511]
[1718673843766,3.0,3443.7,3442.7,2.90468]
[1718673843968,3.0,3443.7,3441.3,2.9058]
[1718673843969,3.0,3442.9,3441.9,2.90532]
[1718673844184,3.0,3442.4,3441.9,2.90529]
[1718673844487,1.44398311,3444.2,3441.0,0.75]
[1718673844488,3.0,3441.7,3441.0,0.75]
[1718673844689,3.0,3442.7,3441.5,0.75]
[1718673844892,3.0,3442.2,3440.9,2.90621]
[1718673845094,3.0,3442.2,3441.1,2.90597]
[1718673845095,3.0,3441.4,3441.1,2.90597]
[1718673845242,3.0,3442.7,3441.5,2.90564]
[1718673845584,3.0,3442.3,3441.3,2.90585]
[1718673845799,3.0,3441.6,3441.5,2.9057]
[1718673845961,3.0,3442.7,3441.6,0.75]
[1718673846158,5.1274,3444.2,3441.0,2.90611]
[1718673846159,3.0,3442.3,3441.0,0.75]
[1718673846377,3.0,3441.6,3440.6,0.75]
[1718673846690,3.0,3442.1,3441.5,2.90565]
[1718673846993,3.0,3441.2,3440.9,2.90614]
[1718673847160,3.0,3440.7,3440.6,2.90639]
[1718673847521,3.0,3440.7,3440.6,8.71931]
[1718673847717,3.0,3440.7,3440.6,2.90639]
[1718673847919,3.0,3440.7,3439.4,2.90742]
[1718673847920,3.0,3440.0,3439.2,2.90763]
[1718673848049,3.0,3440.0,3439.2,0.290763]
[1718673848250,3.0,3440.6,3440.4,2.90656]
[1718673848453,3.0,3440.6,3439.2,0.75]
[1718673848649,3.0,3439.7,3438.8,3.65798]
[1718673848898,3.0,3440.6,3439.6,0.75]
[1718673849057,3.0,3440.6,3440.1,2.90683]
[1718673849259,3.0,3440.6,3439.9,0.75]
[1718673849458,3.0,3441.7,3440.7,0.75]
[1718673849662,2.9042,3443.3,3440.1,0.75]
[1718673849663,3.0,3441.3,3440.1,0.75]
[1718673849999,2.90497,3442.4,3441.6,0.75]
[1718673850293,3.0,3442.8,3441.8,0.75]
[1718673850491,3.0,3442.8,3440.7,5.1461]
[1718673850492,5.90468,3442.8,3441.9,2.90532]
[1718673850707,3.0,3441.7,3441.4,2.90579]
[1718673851004,3.0,3441.7,3440.5,2.90654]
[1718673851170,3.0,3441.0,3440.0,3.65695]
[1718673851378,3.0,3442.1,3441.4,2.90574]
[1718673851700,3.0,3440.9,3440.2,0.75]
[1718673851898,3.0,3440.9,3440.5,0.75]
[1718673852112,3.0,3440.9,3439.1,2.90765]
[1718673852113,3.0,3440.9,3440.1,0.75]
[1718673852260,3.0,3440.2,3439.3,0.75]
[1718673852458,3.0,3439.8,3438.9,2.90785]
[1718673852693,3.0,3440.3,3439.7,0.75]
[1718673852872,3.0,3440.1,3438.9,0.75]
[1718673853067,3.0,3440.1,3439.1,0.75]
[1718673853268,3.0,3440.7,3440.0,0.75]
[1718673853477,7.1543,3441.9,3440.9,3.65617]
[1718673853478,3.0,3441.8,3440.9,3.65617]
[1718673853667,3.0,3441.9,3440.9,0.75]
[1718673853867,2.90506,3442.3,3439.8,5.0888]
[1718673853868,3.0,3442.5,3441.5,0.75]
[1718673854100,3.0,3442.9,3442.1,3.65516]
[1718673854299,5.90414,3443.4,3442.5,0.75]
[1718673854459,5.90414,3443.4,3442.4,2.90488]
[1718673854460,5.90414,3443.4,3442.3,2.90498]
[1718673854658,5.90444,3443.0,3442.1,0.75]
[1718673854860,3.0,3443.4,3442.6,0.75]
[1718673855061,2.90326,3444.5,3443.2,2.90423]
[1718673855062,3.0,3444.1,3443.2,2.90423]
[1718673855291,3.0,3443.2,3442.4,0.75]
[1718673855506,3.0,3442.8,3441.7,2.90548]
[1718673855685,3.0,3441.9,3440.8,2.90624]
[1718673856005,3.0,3442.1,3441.4,2.90576]
[1718673856158,3.0,3441.7,3441.1,2.906]
[1718673856361,3.0,3440.6,3439.9,0.75]
[1718673856688,3.0,3440.2,3439.3,0.75]
[1718673856990,7.813,3441.1,3439.5,0.75]
[1718673856991,3.0,3440.1,3439.5,0.75]
[1718673857154,3.0,3441.1,3438.8,0.755]
[1718673857155,3.0,3439.5,3438.8,0.755]
[1718673857360,3.0,3440.9,3439.8,2.90711]
[1718673857597,3.0,3439.8,3439.3,0.75]
[1718673857798,4.747,3441.1,3439.3,0.75]
[1718673857799,3.0,3439.7,3439.4,0.75]
[1718673858004,3.0,3440.3,3439.8,0.75]
[1718673858207,1.35173072,3441.1,3438.8,0.005]
[1718673858208,4.35173072,3441.1,3440.4,0.75]
[1718673858497,3.50297424,3441.9,3441.3,0.75]
[1718673858780,3.0,3441.5,3440.4,0.75]
[1718673858921,3.0,3441.9,3441.2,2.90595]
[1718673859152,5.90489,3442.5,3441.4,3.65576]
[1718673859285,3.0,3442.1,3440.6,0.75]
[1718673859488,2.9055,3441.8,3440.6,0.75]
[1718673859787,3.0,3440.6,3440.1,0.75]
[1718673860021,2.90659,3440.5,3439.8,0.75]
[1718673860329,3.0,3440.2,3439.0,0.75]
[1718673860632,3.0,3440.2,3438.8,3.071]
[1718673860784,3.0,3440.7,3440.2,0.75]
[1718673861357,3.0,3440.7,3440.1,0.75]
[1718673861553,1.35173072,3441.4,3441.0,2.9061]
[1718673861554,3.0,3441.4,3441.0,2.9061]
[1718673861758,1.35173072,3441.9,3441.2,0.75]
[1718673861912,3.0,3442.1,3441.4,2.90577]
[1718673862112,3.0,3442.1,3441.3,0.75]
[1718673862308,3.0,3442.1,3441.9,2.90534]
[1718673862544,2.90457,3442.9,3442.1,2.90518]
[1718673862815,3.0,3443.0,3442.5,0.75]
[1718673863010,3.0,3443.5,3442.9,0.75]
[1718673863260,2.90392,3443.7,3443.2,0.75]
[1718673863551,3.0,3444.0,3443.4,0.75]
[1718673863876,2.90314,3444.6,3443.8,0.75]
[1718673864066,3.0,3444.3,3443.3,0.75]
[1718673864370,3.0,3444.3,3443.4,0.75]
[1718673864554,3.0,3444.3,3443.7,0.75]
[1718673864874,3.0,3443.7,3443.1,3.65433]
[1718673865116,3.0,3443.3,3442.7,0.75]
[1718673865231,3.0,3443.8,3442.7,0.75]
[1718673865430,2.90413,3443.4,3442.7,0.75]
[1718673865643,3.0,3443.8,3443.1,0.75]
[1718673865830,5.90441,3443.1,3442.5,0.75]
[1718673866165,3.0,3443.5,3442.7,0.75]
[1718673866340,3.0,3443.7,3442.9,0.75]
[1718673866541,2.90424,3443.3,3442.5,0.75]
[1718673866741,3.0,3443.7,3443.3,0.75]
[1718673866964,7.25631324,3444.5,3443.7,0.75]
[1718673867131,0.291,3445.1,3443.7,0.75]
[1718673867132,2.90345,3444.2,3443.7,0.75]
[1718673867331,2.90345,3444.2,3442.9,9.08705]
[1718673867332,4.25607324,3444.8,3444.0,0.75]
[1718673867528,4.25607324,3444.8,3442.9,6.1826]
[1718673867529,2.90311,3444.6,3444.2,0.75]
[1718673867754,0.50251597,3445.0,3444.0,0.75]
[1718673867970,0.50251597,3445.0,3443.5,0.75]
[1718673867971,2.90353,3444.1,3443.5,0.75]
[1718673868133,3.0,3444.5,3444.2,0.75]
[1718673868461,2.90271,3445.1,3444.8,0.75]
[1718673868770,2.90283,3445.0,3444.3,0.75]
[1718673868976,2.90269,3445.1,3444.5,0.75]
[1718673869196,2.90257,3445.3,3444.1,2.90347]
[1718673869197,2.90251,3445.3,3444.9,0.75]
[1718673869333,1.35312324,3445.8,3445.1,0.75]
[1718673869534,3.0,3446.3,3445.3,0.75]
[1718673869535,2.90227,3445.6,3445.3,0.75]
[1718673869734,1.35312324,3446.1,3445.3,0.75]
[1718673869985,5.9017,3446.3,3446.0,0.75]
[1718673869986,1.35312324,3446.3,3446.0,0.75]
[1718673870202,2.90153,3446.5,3446.0,0.75]
[1718673870333,2.90202,3445.9,3445.8,0.75]
[1718673870690,4.35312324,3446.8,3446.1,0.75]
[1718673870691,2.90129,3446.8,3446.1,0.75]
[1718673870837,2.9011,3447.0,3446.1,0.75]
[1718673871195,2.90122,3446.9,3446.4,0.75]
[1718673871336,3.0,3447.4,3446.9,0.75]
[1718673871541,3.0,3447.4,3446.2,6.0211]
[1718673871542,2.90086,3447.3,3447.1,0.75]
[1718673871794,2.9004,3447.8,3447.5,0.75]
[1718673872000,2.90029,3448.0,3447.7,0.75]
[1718673872138,4.25277324,3448.7,3448.3,0.75]
[1718673872139,2.89991,3448.4,3448.3,0.75]
[1718673872486,2.89991,3448.4,3446.2,7.5211]
[1718673872487,3.0,3448.9,3447.8,0.75]
[1718673872802,2.89945,3449.0,3448.4,0.75]
[1718673872936,2.89997,3448.3,3448.2,0.75]
[1718673873133,2.89964,3448.7,3448.6,0.75]
[1718673873363,2.89945,3449.0,3448.8,0.75]
[1718673873533,2.89985,3448.5,3448.2,0.75]
[1718673873736,2.89985,3448.5,3447.7,6.0211]
[1718673873737,2.89985,3448.5,3448.4,0.75]
[1718673873996,2.89969,3448.7,3448.1,0.75]
[1718673874157,2.89969,3448.7,3447.1,2.90097]
[1718673874158,2.90019,3448.1,3447.4,0.75]
[1718673874497,2.89966,3448.7,3446.7,0.7082]
[1718673874498,2.90047,3447.8,3446.7,0.7082]
[1718673874775,2.90141,3446.6,3446.2,0.7082]
[1718673874979,3.0,3447.6,3446.3,0.7082]
[1718673875178,2.90119,3446.9,3446.3,0.7082]
[1718673875404,3.0,3447.0,3446.3,0.7082]
[1718673875535,2.90035,3447.9,3445.8,0.7082]
[1718673875536,3.0,3446.6,3445.8,0.7082]
[1718673875885,3.0,3446.6,3445.9,0.7082]
[1718673876235,3.0,3447.0,3446.5,0.7082]
[1718673876436,1.35705457,3448.4,3446.5,0.7082]
[1718673876437,2.90042,3447.8,3446.5,0.7082]
[1718673876789,2.90009,3448.2,3446.5,0.7082]
[1718673876790,2.90094,3447.2,3446.5,0.7082]
[1718673876940,2.90026,3448.0,3446.6,2.90138]
[1718673877291,3.0,3448.1,3447.2,0.7082]
[1718673877292,3.0,3447.9,3447.2,0.7082]
[1718673877504,3.0,3447.9,3445.5,2.90226]
[1718673877505,3.0,3447.6,3446.7,0.7082]
[1718673877677,3.0,3447.6,3446.4,3.60972]
[1718673877985,3.0,3448.0,3447.6,0.7082]
[1718673878216,2.89993,3448.4,3447.9,0.7082]
[1718673878352,5.89985,3448.5,3447.9,0.7082]
[1718673878676,5.89985,3448.5,3448.3,0.7082]
[1718673878677,3.0,3448.5,3448.3,0.7082]
[1718673878873,0.1228357,3449.6,3447.5,0.7082]
[1718673878874,2.89999,3448.3,3447.5,0.7082]
[1718673879058,4.7687757,3449.6,3448.7,0.7082]
[1718673879059,2.89934,3449.1,3448.7,0.7082]
[1718673879261,2.89942,3449.0,3448.7,0.7082]
[1718673879464,2.89908,3449.4,3449.0,0.7082]
[1718673879663,2.89908,3449.4,3449.2,0.7082]
[1718673880200,0.1228357,3449.6,3449.4,0.7082]
[1718673880726,0.1228357,3449.6,3448.2,5.8527]
[1718673880727,0.0317942,3449.6,3448.5,0.7082]
[1718673880852,2.89942,3449.0,3448.3,0.7082]
[1718673881055,0.0317942,3449.6,3447.9,0.7082]
[1718673881251,2.89935,3449.1,3448.4,0.7082]
[1718673881655,3.0,3448.8,3447.8,0.7082]
[1718673881855,3.0,3448.8,3447.5,2.9006]
[1718673881856,2.89992,3448.4,3447.5,3.60883]
[1718673882116,3.0,3448.3,3447.8,2.90037]
[1718673882395,5.90012,3448.2,3447.3,0.7082]
[1718673882563,3.0,3448.1,3447.3,0.7082]
[1718673882769,2.90075,3447.4,3446.4,0.7082]
[1718673882967,3.0,3447.6,3446.8,2.90122]
[1718673883166,3.0,3447.3,3446.5,0.7082]
[1718673883381,3.0,3447.3,3446.1,2.9018]
[1718673883382,3.0,3447.0,3446.3,0.7082]
[1718673883597,3.0,3446.9,3446.3,0.7082]
[1718673883759,3.0,3446.6,3446.0,3.61005]
[1718673883967,3.0,3446.9,3446.2,2.90166]
[1718673884172,0.0317942,3447.0,3444.8,5.9301]
[1718673884173,2.90179,3446.2,3445.5,0.7082]
[1718673884432,3.0,3445.7,3445.1,0.7082]
[1718673884705,2.90163,3446.4,3445.3,0.7082]
[1718673884706,3.0,3446.1,3445.3,0.7082]
[1718673884905,3.0,3446.1,3445.5,0.7082]
[1718673885106,5.9019,3446.1,3445.3,0.7082]
[1718673885326,3.0,3446.1,3445.1,0.7082]
[1718673885530,2.90213,3445.8,3445.1,0.7082]
[1718673885663,2.90258,3445.3,3445.1,0.7082]
[1718673885866,2.90304,3444.7,3444.5,0.7082]
[1718673886125,2.90281,3445.0,3444.5,0.7082]
[1718673886262,3.0,3444.6,3443.4,2.90406]
[1718673886463,2.9034,3444.3,3443.8,0.7082]
[1718673886721,3.0,3444.5,3443.8,0.7082]
[1718673886880,3.0,3444.5,3443.0,5.9301]
[1718673886881,2.90343,3444.2,3443.5,0.7082]
[1718673887092,3.0,3444.5,3443.0,0.7082]
[1718673887385,2.90396,3443.6,3442.5,0.7082]
[1718673887749,2.90396,3443.6,3441.9,8.8354]
[1718673887750,2.90421,3443.3,3442.7,0.7082]
[1718673888042,3.0,3443.5,3442.7,0.7082]
[1718673888043,2.90413,3443.4,3442.7,0.7082]
[1718673888192,3.0,3444.6,3443.5,0.7082]
[1718673888396,1.35409346,3444.7,3444.6,0.7082]
[1718673888706,3.0,3445.7,3444.6,0.7082]
[1718673889027,2.90263,3445.2,3444.3,0.7082]
[1718673889190,3.0,3445.7,3445.0,0.7082]
[1718673889393,5.90221,3445.7,3445.0,0.7082]
[1718673889597,2.90229,3445.6,3445.0,0.7082]
[1718673889814,3.0,3446.2,3445.1,0.7082]
[1718673890020,2.90205,3445.9,3445.3,0.7082]
[1718673890205,5.90179,3446.2,3444.3,9.30381]
[1718673890206,3.0,3446.2,3445.5,0.7082]
[1718673890403,2.90203,3445.9,3445.3,0.7082]
[1718673890635,2.90212,3445.8,3445.0,0.7082]
[1718673890836,2.90208,3445.9,3444.7,0.7082]
[1718673891036,2.90208,3445.9,3445.1,0.7082]
[1718673891333,3.0,3446.2,3445.3,0.7082]
[1718673891544,3.0,3446.2,3445.5,0.7082]
[1718673892059,0.0317942,3446.9,3446.2,0.7082]
[1718673892276,2.9018,3446.2,3445.9,0.7082]
[1718673892395,5.90131,3446.8,3445.9,0.7082]
[1718673892726,2.90169,3446.3,3445.9,0.7082]
[1718673893046,2.9017,3446.3,3445.9,0.7082]
[1718673893212,2.90144,3446.6,3445.9,0.7082]
[1718673893416,3.0,3446.8,3445.2,0.7082]
[1718673893737,2.9329842,3446.9,3445.2,0.7082]
[1718673893738,2.90237,3445.5,3445.2,0.7082]
[1718673893964,2.90212,3445.8,3445.2,0.7082]
[1718673894253,2.90281,3445.0,3444.2,0.7082]
[1718673894602,2.90321,3444.5,3443.5,2.90402]
[1718673894916,2.90321,3444.5,3444.2,0.7082]
[1718673895111,2.90321,3444.5,3443.9,0.7082]
[1718673895444,2.90343,3444.3,3443.5,0.7082]
[1718673895597,13.759186,3444.4,3443.7,0.7082]
[1718673895800,2.90344,3444.2,3443.7,0.7082]
[1718673896314,2.90355,3444.1,3443.7,0.7082]
[1718673896531,2.90355,3444.1,3443.5,0.7082]
[1718673896532,3.0,3444.0,3443.5,0.7082]
[1718673896744,16.784593,3444.3,3443.5,0.7082]
[1718673897061,1.35535386,3444.8,3444.6,0.7082]
[1718673897261,2.9019,3446.1,3444.8,0.7082]
[1718673897262,1.35535386,3445.0,3444.8,0.7082]
[1718673897560,4.25754386,3445.7,3445.0,0.7082]
[1718673897755,4.25740386,3445.9,3445.0,0.7082]
[1718673898035,4.25740386,3445.9,3444.0,5.8668]
[1718673898036,2.90209,3445.8,3445.2,0.7082]
[1718673898237,1.35535386,3445.9,3444.0,5.8668]
[1718673898238,1.35535386,3445.9,3445.6,0.7082]
[1718673898439,1.35535386,3445.8,3445.6,0.7082]
[1718673898609,2.90169,3446.3,3445.6,0.7082]
[1718673898937,3.0,3446.5,3445.9,0.7082]
[1718673899140,3.0,3446.5,3445.4,0.7082]
[1718673899309,3.0,3446.5,3444.2,3.066]
[1718673899310,3.0,3446.5,3446.1,0.7082]
[1718673899514,3.0,3446.5,3446.1,3.61]
[1718673899745,0.0317942,3446.9,3446.6,0.7082]
[1718673899939,0.0317942,3446.9,3446.8,0.7082]
[1718673900624,0.0317942,3446.9,3446.8,10.063007]
[1718673900830,1.35535386,3448.4,3447.8,0.7082]
[1718673901001,5.89995,3448.4,3447.9,0.7082]
[1718673901199,3.0,3448.4,3447.9,0.7082]
[1718673901437,3.0,3447.9,3447.6,0.7082]
[1718673901644,4.60389048,3448.9,3448.1,0.7082]
[1718673901804,1.35572974,3448.5,3448.1,0.7082]
[1718673902012,1.35572974,3448.5,3447.2,0.7082]
[1718673902013,3.0,3448.2,3447.2,0.7082]
[1718673902211,3.0,3447.4,3446.7,0.7082]
[1718673902443,2.90086,3447.3,3446.7,0.7082]
[1718673902669,2.90044,3447.8,3445.8,0.7082]
[1718673902670,3.0,3447.0,3445.8,0.7082]
[1718673902893,5.90137,3446.7,3446.3,0.7082]
[1718673903041,1.35592937,3446.9,3445.9,0.7082]
[1718673903042,3.0,3446.3,3445.9,0.7082]
[1718673903245,3.0,3446.3,3445.1,5.8668]
[1718673903246,3.0,3446.2,3445.1,5.8668]
[1718673903601,2.9022,3445.7,3445.6,0.7082]
[1718673903719,2.9022,3445.7,3444.4,2.9032]
[1718673903720,5.80495,3445.4,3445.2,0.7082]
[1718673903920,2.90266,3445.2,3445.1,0.7082]
[1718673904132,2.90337,3444.3,3444.2,0.7082]
[1718673904335,2.90301,3444.7,3444.6,0.7082]
[1718673904604,1.8570265,3445.6,3445.4,0.7082]
[1718673904752,1.8570265,3445.6,3445.4,3.61054]
[1718673904934,1.35500548,3446.1,3446.0,0.7082]
[1718673905694,1.3552979,3446.5,3446.4,0.7082]
[1718673906155,1.35500548,3447.0,3446.9,3.60935]
[1718673906363,2.90036,3447.9,3447.8,0.7082]
[1718673906565,2.90036,3447.9,3446.9,2.90115]
[1718673906566,1.35500548,3448.1,3448.0,0.7082]
[1718673907263,2.89988,3448.5,3448.0,0.7082]
[1718673907447,2.89968,3448.7,3448.4,0.7082]
[1718673907995,2.89951,3448.9,3448.6,0.7082]
[1718673908146,2.89997,3448.3,3448.2,0.7082]
[1718673908350,2.89982,3448.5,3448.4,0.7082]
[1718673908684,2.90021,3448.1,3447.5,0.7082]
[1718673908886,2.90021,3448.1,3446.9,2.90115]
[1718673908887,3.0,3448.5,3447.9,0.7082]
[1718673909114,2.90041,3447.8,3447.5,0.7082]
[1718673909277,2.90041,3447.8,3447.1,0.7082]
[1718673909480,3.0,3447.7,3447.6,0.7082]
[1718673909678,2.89941,3449.0,3448.5,0.7082]
[1718673909945,2.89922,3449.2,3449.1,0.7082]
[1718673910225,5.79749,3449.8,3449.6,0.7082]
[1718673910445,2.89871,3449.8,3449.6,0.7082]
[1718673910744,2.89827,3450.4,3449.9,0.7082]
[1718673910745,2.89861,3450.0,3449.9,0.7082]
[1718673911079,0.1187443,3450.3,3450.2,0.7082]
[1718673911379,0.1187443,3450.3,3450.0,0.7082]
[1718673911575,2.89876,3449.8,3449.6,0.7082]
[1718673911779,3.0,3450.1,3449.0,0.7082]
[1718673912027,2.89947,3448.9,3448.8,0.7082]
[1718673912177,2.89947,3448.9,3448.2,6.354]
[1718673912178,2.89897,3449.5,3449.2,0.7082]
[1718673912381,2.89897,3449.5,3448.2,6.354]
[1718673912382,2.8991,3449.4,3449.0,0.7082]
[1718673912696,2.89925,3449.2,3448.5,0.7082]
[1718673912905,3.0,3449.3,3448.9,0.7082]
[1718673913243,3.0,3448.9,3447.9,0.7082]
[1718673913376,5.80104,3447.7,3447.5,0.7082]
[1718673913580,2.9002,3448.1,3447.8,0.7082]
[1718673913777,2.89992,3448.4,3447.8,0.7082]
[1718673914025,2.90031,3447.9,3447.8,0.7082]
[1718673914256,6.0,3448.4,3448.0,0.7082]
[1718673914479,2.90034,3447.9,3447.7,0.7082]
[1718673914640,6.0,3448.4,3446.6,2.90134]
[1718673914641,8.89992,3448.4,3448.0,0.7082]
[1718673914809,2.90008,3448.2,3448.1,0.7082]
[1718673915008,6.0,3448.4,3448.1,0.7082]
[1718673915009,3.0,3448.4,3448.1,0.7082]
[1718673915239,1.041,3449.8,3448.5,0.7082]
[1718673915240,2.89934,3449.1,3448.5,0.7082]
[1718673915507,2.89934,3449.1,3446.9,2.90108]
[1718673915508,2.89876,3449.8,3449.7,0.7082]
[1718673915709,2.89888,3449.7,3449.5,0.7082]
[1718673915919,2.89867,3449.9,3449.5,0.7082]
[1718673916138,2.8988,3449.7,3449.6,0.7082]
[1718673916413,3.1187443,3450.3,3449.8,0.7082]
[1718673916720,2.8986,3450.0,3449.8,0.7082]
[1718673916920,2.89883,3449.7,3449.5,0.7082]
[1718673917124,2.89883,3449.7,3449.3,0.7082]